Workbook

Sheet Доходы
A9: Оценка ожидаемого исполнения бюджета Пугачевского муниципального района Саратовской области на 2018 год
A11: I. ДОХОДЫ
C13: тыс.рублей | D13: тыс.рублей
A15: Наименование кода бюджетной классификации доходов | B15: Код бюджетной классификации доходов | C15: Уточненный план на 2018 год | D15: Ожидаемое исполнение плана | E15: Процент испол-нения плана
A16: Доходы всего
A17: Налоговые и неналоговые доходы | B17: 1 00 00000 00 0000 000 | C17: =C18+C30 -> 203,820.8 | D17: =D18+D30 -> 203,820.8 | E17: =D17/C17 -> 100.0%
A18: Налоговые доходы | C18: =C19+C23+C25+C29 -> 165,616.3 | D18: =D19+D23+D25+D29 -> 165,616.3 | E18: =D18/C18 -> 100.0%
A19: Налоги на прибыль, доходы | B19: 1 01 00000 00 0000 000 | C19: =C20 -> 120,226.6 | D19: 120,226.6 | E19: 100.0%
A20: Налог на доходы физических лиц | B20: 1 01 02000 01 0000 110 | C20: 120,226.6 | D20: 120,226.6 | E20: 100.0%
A21: НДФЛ с работников | C21: 100,544.3 | D21: 100,544.3 | E21: 100.0%
A22: НДФЛ предприниматели | C22: 230.7 | D22: 230.7 | E22: 100.0%
A23: Налоги на товары (работы, услуги), реализуемые на территории Российской Федерации | B23: 1 03 00000 00 0000 000 | C23: =C24 -> 9,037.1 | D23: 9,037.1 | E23: 100.0%
A24: Акцизы по подакцизным товарам (продукции), производимым на территории Российской Федерации | B24: 1 03 02000 01 0000 110 | C24: 9,037.1 | D24: 9,037.1 | E24: 100.0%
A25: Налоги на совокупный доход | B25: 1 05 00000 00 0000 000 | C25: =C26+C27+C28 -> 33,087.6 | D25: =D26+D27+D28 -> 33,087.6 | E25: 100.0%
A26: Единый налог на вмененный доход для отдельных видов деятельности | B26: 1 05 02000 02 0000 110 | C26: 26,000.0 | D26: 26,000.0 | E26: 100.0%
A27: Единый сельскохозяйственный налог | B27: 1 05 03000 01 0000 110 | C27: 6,767.6 | D27: 6,767.6 | E27: 100.0%
A28: Налог, взимаемый в связи с применением патентной системы налогообложения | B28: 1 05 04000 02 0000 110 | C28: 320.0 | D28: 320.0 | E28: 100.0%
A29: Государственная пошлина | B29: 1 08 00000 00 0000 000 | C29: 3,265.0 | D29: 3,265.0 | E29: 100.0%
A30: Неналоговые доходы | C30: =C31+C39+C40+C43 -> 38,204.5 | D30: =D31+D39+D40+D43 -> 38,204.5 | E30: 100.0%
A31: Доходы от использования имущества, находящегося в государственной и муниципальной собственности | B31: 1 11 00000 00 0000 000 | C31: =C32+C33+C37+C38 -> 5,919.6 | D31: =D32+D33+D37+D38 -> 5,919.6 | E31: 100.0%
A32: Проценты, полученные от предоставления бюджетных кредитов внутри страны | B32: 1 11 03000 00 0000 120 | C32: 23.6 | D32: 23.6 | E32: 100.0%
A33: Доходы, получаемые в виде арендной либо иной платы за передачу в возмездное пользование государственного и муниципального имущества (за исключением имущества бюджетных и автономных учреждений, а также имущества государственных и муниципальных унитарных предприятий, в том числе казенных) | B33: 1 11 05000 00 0000 120 | C33: =C34+C35+C36 -> 5,875.0 | D33: =D34+D35+D36 -> 5,875.0 | E33: 100.0%
A34: Доходы, получаемые в виде арендной платы за земельные участки, государственная собственность на которые не разграничена, а также средства от продажи права на заключение договоров аренды указанных земельных участков | B34: 1 11 05010 00 0000 120 | C34: 5,639.0 | D34: 5,639.0 | E34: 100.0%
A35: Доходы, получаемые в виде арендной платы за земли после разграничения государственной собственности на землю, а также средства от продажи права на заключение договоров аренды указанных земельных участков (за исключением земельных участков бюджетных и автономных учреждений) | B35: 1 11 05020 00 0000 120 | C35: 0.0 | D35: 0.0
A36: Доходы от сдачи в аренду имущества, составляющего казну муниципальных районов (за исключением земельных участков) | B36: 1 11 05070 00 0000 120 | C36: 236.0 | D36: 236.0 | E36: 100.0%
A37: Платежи от государственных и муниципальных унитарных предприятий | B37: 1 11 07000 00 0000 120 | C37: 21.0 | D37: 21.0 | E37: 100.0%
A38: Прочие доходы от сдачи в аренду имущества | B38: 1 11 09000 00 0000 120 | C38: 0.0 | D38: 0.0
A39: Платежи при пользовании природными ресурсами | B39: 1 12 00000 00 0000 000 | C39: 838.2 | D39: 838.2 | E39: 100.0%
A40: Доходы от продажи материальных и нематериальных активов | B40: 1 14 00000 00 0000 000 | C40: =C41+C42 -> 27,121.0 | D40: =D41+D42 -> 27,121.0 | E40: 100.0%
A41: Доходы от реализации имущества, находящегося в государственной и муниципальной собственности (за исключением движимого имущества бюджетных и автономных учреждений, а также имущества государственных и муниципальных унитарных предприятий, в том числе казенных) | B41: 1 14 02000 00 0000 000 | C41: 22,815.0 | D41: 22,815.0 | E41: 100.0%
A42: Доходы от продажи земельных участков, находящихся в государственной и муниципальной собственности | B42: 1 14 06000 00 0000 000 | C42: 4,306.0 | D42: 4,306.0 | E42: 100.0%
A43: Штрафы, санкции, возмещение ущерба | B43: 1 16 00000 00 0000 000 | C43: 4,325.7 | D43: 4,325.7 | E43: 100.0%
A44: Безвозмездные поступления | B44: 2 00 00000 00 0000 000 | C44: =C45 -> 712,147.5 | D44: 712,147.5 | E44: 100.0%
A45: Безвозмездные поступления от других бюджетов бюджетной системы Российской Федерации | B45: 2 02 00000 00 0000 000 | C45: =C46+C51+C61+C85 -> 712,147.5 | D45: =D46+D51+D61+D85 -> 712,147.5 | E45: 100.0%
A46: Дотации бюджетам бюджетной системы Российской Федерации | B46: 2 02 10000 00 0000 151 | C46: =C47 -> 145,985.0 | D46: 145,985.0 | E46: 100.0%
A47: Дотации на выравнивание бюджетной обеспеченности | B47: 2 02 15001 00 0000 151 | C47: 145,985.0 | D47: 145,985.0 | E47: 100.0%
A48: Дотации на выравнивание бюджетной обеспеченности муниципальных районов области | B48: 2 02 15001 05 0002 151 | C48: 145,985.0 | D48: 145,985.0 | E48: 100.0%
A49: Дотации бюджетам на поддержку мер по обеспечению сбалансированности бюджетов | B49: 2 02 15002 00 0000 151 | C49: 0.0 | D49: 0.0
A50: Дотации бюджетам муниципальных районов на поддержку мер по обеспечению сбалансированности бюджетов | B50: 2 02 15002 05 0000 151
A51: Субсидии бюджетам бюджетной системы Российской Федерации (межбюджетные субсидии) | B51: 2 02 20000 00 0000 151 | C51: =C52+C53+C54+C55 -> 131,536.4 | D51: =D52+D53+D54+D55 -> 131,536.4 | E51: 100.0%
A52: Субсидии бюджетам муниципальных районов области на реализацию федеральных целевых программ (на закупку комплектов искусственных покрытий для футбольных полей для спортивных детско-юношеских школ области, включая их доставку и сертификацию полей | B52: 2 02 20051 05 0000 151 | C52: 10,810.8 | D52: 10,810.8 | E52: 100.0%
A53: Субсидии бюджетам муниципальных районов на реализацию мероприятий по обеспечению жильем молодых семей | B53: 2 02 25497 05 0000 151 | C53: 4,632.6 | D53: 4,632.6 | E53: 100.0%
A54: Субсидии бюджетам муниципальных районов на поддержку отрасли культуры | B54: 2 02 25519 05 0000 151 | C54: 275.9 | D54: 275.9 | E54: 100.0%
A55: Прочие субсидии бюджетам муниципальных районов | B55: 2 02 29999 05 0000 151 | C55: =C56+C57+C59+C58+C60 -> 115,817.1 | D55: =D56+D57+D59+D58+D60 -> 115,817.1 | E55: 100.0%
A56: Субсидия бюджетам муниципальных районов области на капитальный ремонт, ремонт и содержание автомобильных дорог общего пользования местного значения за счет средств областного дорожного фонда | B56: 2 02 29999 05 0063 151 | C56: 11,945.4 | D56: 11,945.4 | E56: 100.0%
A57: Субсидии бюджетам муниципальных районов области на обеспечение расходных обязательств, связанных с повышением оплаты труда отдельным категориям работников бюджетной сферы в целях реализации указов Президента Российской Федерации от 7 мая 2012 года №597 "О мероприятиях по реализации государственной социальной политики" и от 1 июня 2012 года № 761 "О Национальной стратегии действий в интересах детей на 2012-2017 годы" | B57: 2 02 29999 05 0069 151 | C57: 25,590.0 | D57: 25,590.0 | E57: 100.0%
A58: Субсидии бюджетам муниципальных районов области на реализацию расходных обязательств, возникающих при выполнении полномочий по решению вопросов местного значения | B58: 2 02 29999 05 0074 151 | C58: 56,125.2 | D58: 56,125.2 | E58: 100.0%
A59: Субсидия бюджетам муниципальных районов области на обеспечение повышения оплаты труда некоторых категорий работников муниципальных учреждений | B59: 2 02 29999 05 0075 151 | C59: 20,656.5 | D59: 20,656.5 | E59: 100.0%
A60: Субсидия бюджетам муниципальных районов области на приобретение дорожно-эксплуатационной техники, необходимой для выполнения комплекса работ по поддержанию надлежащего технического состояния автомобильных дорог общего пользования местного значения за счет средств областного дорожного фонда | B60: 2 02 29999 05 0076 151 | C60: 1,500.0 | D60: 1,500.0 | E60: 100.0%
A61: Субвенции бюджетам субъектов Российской Федерации и муниципальных образований | B61: 2 02 30000 00 0000 151 | C61: =C64+C84 -> 425,988.6 | D61: =D64+D84 -> 425,988.6 | E61: 100.0%
A62: Субвенции бюджетам муниципальных районов на осуществление полномочий по составлению (изменению) списков кандидатов в присяжные заседатели федеральных судов общей юрисдикции в Российской Федерации | B62: 2 02 35120 05 0000 151
A63: Субвенции бюджетам муниципальных районов на осуществление первичного воинского учета на территориях, где отсутствуют военные комиссариаты | B63: 2 02 35118 05 0000 151
A64: Субвенции бюджетам муниципальных районов на выполнение передаваемых полномочий субъектов Российской Федерации | B64: 2 02 30024 05 0000 151 | C64: =SUM(C65:C83) -> 425,897.8 | D64: =SUM(D65:D83) -> 425,897.8 | E64: 100.0%
A65: Субвенции бюджетам муниципальных районов области на финансовое обеспечение образовательной деятельности муниципальных общеобразовательных учреждений | B65: 2 02 30024 05 0001 151 | C65: 294,093.4 | D65: 294,093.4 | E65: 100.0%
A66: Субвенции бюджетам муниципальных районов области на осуществление органами местного самоуправления государственных полномочий по созданию и организации деятельности комиссий по делам несовершеннолетних и защите их прав | B66: 2 02 30024 05 0003 151 | C66: 583.4 | D66: 583.4 | E66: 100.0%
A67: Субвенции бюджетам муниципальных районов области на осуществление органами местного самоуправления отдельных государственных полномочий по санкционированию финансовыми органами муниципальных образований Саратовской области кассовых выплат получателям средств областного бюджета, областным государственным автономным и бюджетным учреждениям, расположенным на территориях муниципальных образований области | B67: 2 02 30024 05 0004 151
A68: Субвенция бюджетам муниципальных районов области на исполнение государственных полномочий по расчету и предоставлению дотаций поселениям | B68: 2 02 30024 05 0007 151 | C68: 2,652.9 | D68: 2,652.9 | E68: 100.0%
A69: Субвенции бюджетам муниципальных районов области на осуществление органами местного самоуправления государственных полномочий по образованию и обеспечению деятельности административных комиссий, определению перечня должностных лиц, уполномоченных составлять протоколы об административных правонарушениях | B69: 2 02 30024 05 0008 151 | C69: 205.1 | D69: 205.1 | E69: 100.0%
A70: Субвенции бюджетам муниципальных районов на осуществление органами местного самоуправления отдельных государственных полномочий по осуществлению деятельности по опеке и попечительству в отношении несовершеннолетних граждан в части расходов на оплату труда, уплату страховых взносов по обязательному социальному страхованию в государственные внебюджетные фонды Российской Федерации, обеспечение деятельности штатных работников | B70: 2 02 30024 05 0009 151 | C70: 1,172.6 | D70: 1,172.6 | E70: 100.0%
A71: Субвенции бюджетам муниципальных районов области на осуществление органами местного самоуправления государственных полномочий по организации предоставления гражданам субсидий на оплату жилого помещения и коммунальных услуг | B71: 2 02 30024 05 0010 151 | C71: 401.0 | D71: 401.0 | E71: 100.0%
A72: Субвенции бюджетам муниципальных районов области на осуществление органами местного самоуправления отдельных государственных полномочий по осуществлению деятельности по опеке и попечительству в отношении совершеннолетних граждан | B72: 2 02 30024 05 0011 151 | C72: 217.0 | D72: 217.0 | E72: 100.0%
A73: Субвенции бюджетам муниципальных районов области на осуществление органами местного самоуправления государственных полномочий по организации предоставления компенсации родительской платы за присмотр и уход за детьми в образовательных организациях, реализующих основную общеобразовательную программу дошкольного образования | B73: 2 02 30024 05 0012 151 | C73: 376.4 | D73: 376.4 | E73: 100.0%
A74: Субвенции бюджетам муниципальных районов области на компенсацию родительской платы за присмотр и уход за детьми в образовательных организациях, реализующих основную общеобразовательную программу дошкольного образования | B74: 2 02 30024 05 0014 151 | C74: 6,719.5 | D74: 6,719.5 | E74: 100.0%
A75: Субвенции бюджетам муниципальных районов области на осуществление органами местного самоуправления отдельных государственных полномочий по государственному управлению охраной труда | B75: 2 02 30024 05 0015 151 | C75: 204.9 | D75: 204.9 | E75: 100.0%
A76: Субвенции бюджетам муниципальных районов области на осуществление органами местного самоуправления государственных полномочий по предоставлению гражданам субсидий на оплату жилого помещения и коммунальных услуг | B76: 2 02 30024 05 0016 151 | C76: 7,560.4 | D76: 7,560.4 | E76: 100.0%
A77: Субвенции бюджетам муниципальных районов области на предоставление питания отдельным категориям обучающихся в муниципальных образовательных организациях, реализующих образовательные программы начального общего, основного общего и среднего общего образования | B77: 2 02 30024 05 0027 151 | C77: 6,723.9 | D77: 6,723.9 | E77: 100.0%
A78: Субвенции бюджетам муниципальных районов области на частичное финансирование расходов на присмотр и уход за детьми дошкольного возраста в муниципальных образовательных организациях, реализующих основную общеобразовательную программу дошкольного образования | B78: 2 02 30024 05 0028 151 | C78: 1,793.3 | D78: 1,793.3 | E78: 100.0%
A79: Субвенции бюджетам муниципальных районов области на осуществление органами местного самоуправления государственных полномочий по организации предоставления питания отдельным категориям обучающихся в муниципальных образовательных организациях, реализующих образовательные программы начального общего, основного общего и среднего общего образования, и частичному финансированию расходов на присмотр и уход за детьми дошкольного возраста в муниципальных образовательных организациях, реализующих основную общеобразовательную программу дошкольного образования | B79: 2 02 30024 05 0029 151 | C79: 438.5 | D79: 438.5 | E79: 100.0%
A80: Субвенции бюджетам муниципальных районов области на финансовое обеспечение образовательной деятельности муниципальных дошкольных образовательных организаций | B80: 2 02 30024 05 0037 151 | C80: 102,710.2 | D80: 102,710.2 | E80: 100.0%
A81: Субвенции бюджетам муниципальных районов на осуществление органами местного самоуправления отдельных государственных полномочий по осуществлению деятельности по опеке и попечительству в отношении несовершеннолетних граждан в части расходов на обеспечение деятельности по сохранению, содержанию и ремонту пустующих жилых помещений, закрепленных за детьми сиротами и детьми, оставшимися без попечения родителей | B81: 2 02 30024 05 0038 151
A82: Субвенции бюджетам муниципальных районов области на осуществление органами местного самоуправления отдельных государственных полномочий на организацию проведения мероприятий по отлову и содержанию безнадзорных животных | B82: 2 02 30024 05 0039 151 | C82: 0.7 | D82: 0.7 | E82: =D82/C82 -> 100.0%
A83: Субвенции бюджетам муниципальных районов области на проведение мероприятий по отлову и содержанию безнадзорных животных | B83: 2 02 30024 05 0040 151 | C83: 44.6 | D83: 44.6 | E83: 100.0%
A84: Субвенции бюджетам муниципальных районов на осуществление полномочий по составлению (изменению) списков кандидатов в присяжные заседатели федеральных судов общей юрисдикции в Российской Федерации | B84: 2 02 35120 05 0000 120 | C84: 90.8 | D84: 90.8 | E84: 100.0%
A85: ИНЫЕ МЕЖБЮДЖЕТНЫЕ ТРАНСФЕРТЫ | B85: 2 02 40000 00 0000 000 | C85: =C87+C88+C89+C86 -> 8,637.5 | D85: =D87+D88+D89+D86 -> 8,637.5 | E85: 100.0%
A86: Межбюджетные трансферты бюджетам муниципальных районов области за счет резервного фонда Правительства области | B86: 2 02 49999 05 0006 151 | C86: 300.0 | D86: 300.0 | E86: 100.0%
A87: Межбюджетные трансферты, передаваемые бюджетам муниципальных районов области в целях обеспечения надлежащего осуществления полномочий по решению вопросов местного значения | B87: 2 02 49999 05 0013 151 | C87: 890.0 | D87: 890.0 | E87: 100.0%
A88: Межбюджетные трансферты, передаваемые бюджетам муниципальных районов области на осуществление полномочий органов местного самоуправления в области энергосбережения и повышения энергетической эффективности | B88: 2 02 49999 05 0014 151 | C88: 7,277.5 | D88: 7,277.5 | E88: 100.0%
A89: Межбюджетные трансферты, передаваемые бюджетам муниципальных районов области в целях поддержки районных печатных средств массовой информации | B89: 2 02 49999 05 0015 151 | C89: 170.0 | D89: 170.0 | E89: 100.0%
A90: ВСЕГО ДОХОДОВ | C90: =C17+C44 -> 915,968.3 | D90: =D17+D44 -> 915,968.3 | E90: 100.0%
B91: в рублях | C91: 915,968,321.63 | D91: 915,968,321.63

Sheet Расходы
A1: Оценка ожидаемого исполнения бюджета Пугачевского муниципального района на 2018 год
A2: 2. Расходы
M3: (рублей) | N3: (тыс. рублей) | Q3: тыс. рублей
A4: Наименование | J4: Раздел | K4: Раз-дел | L4: Под-раз-дел | M4: Сумма | N4: Сумма | O4: Бюджет-ные назначе-ния на 2018 год | P4: Ожидаемое исполне-ние за 2018 год | Q4: % исполне-ния
A5: 1 | K5: 2 | L5: 3 | M5: 6 | N5: 6 | O5: 4 | P5: 5 | Q5: 6
A6: Функционирование высшего должностного лица субъекта Российской Федерации и муниципального образования | K6: 01 | L6: 02 | N6: 90,500.00 | O6: 1,367.1 | P6: 1,367.1 | Q6: =P6/O6*100 -> 100.0
A7: Функционирование законодательных (представительных) органов государственной власти и представительных органов муниципальных образований | K7: 01 | L7: 03 | N7: 444,590.00 | O7: 423.8 | P7: 423.8 | Q7: =P7/O7*100 -> 100.0
A8: Обеспечение деятельности представительного органа власти | K8: 01 | L8: 03 | N8: 444,590.00 | O8: 444.6 | P8: 444.6 | Q8: 100.0
A9: Обеспечение деятельности представительного органа власти | K9: 01 | L9: 03 | N9: 444,590.00 | O9: 444.6 | P9: 444.6 | Q9: 100.0
A10: Расходы на обеспечение функций центрального аппарата | K10: 01 | L10: 03 | N10: 444,590.00 | O10: 444.6 | P10: 444.6 | Q10: 100.0
A11: Расходы на выплаты персоналу в целях обеспечения выполнения функций муниципальными органами, казенными учреждениями | K11: 01 | L11: 03 | N11: 312,500.00 | O11: 312.5 | P11: 312.5 | Q11: 100.0
A12: Расходы на выплаты персоналу муниципальных органов | K12: 01 | L12: 03 | N12: 312,500.00 | O12: 312.5 | P12: 312.5 | Q12: 100.0
A13: Закупка товаров, работ и услуг для муниципальных нужд | K13: 01 | L13: 03 | N13: 132,076.86 | O13: 132.1 | P13: 132.1 | Q13: 100.0
A14: Иные закупки товаров, работ и услуг для обеспечения муниципальных нужд | K14: 01 | L14: 03 | N14: 132,076.86 | O14: 132.1 | P14: 132.1 | Q14: 100.0
A15: Иные бюджетные ассигнования | K15: 01 | L15: 03 | N15: 13.14 | O15: 0.0 | P15: 0.0
A16: Уплата налогов, сборов и иных платежей | K16: 01 | L16: 03 | N16: 13.14 | O16: 0.0 | P16: 0.0
A17: Итого по 7110002200 | K17: 01 | L17: 03 | N17: 444,590.00 | O17: 444.6 | P17: 444.6 | Q17: 100.0
A18: Функционирование Правительства Российской Федерации, высших исполнительных органов государственной власти субъектов Российской Федерации, местных администраций | K18: 01 | L18: 04 | N18: 24,926,085.14 | O18: 24,374.4 | P18: 24,374.4 | Q18: 100.0
A19: Судебная система | K19: 01 | L19: 05 | N19: 39,700.00 | O19: 90.8 | P19: 90.8 | Q19: 100.0
A20: Обеспечение деятельности финансовых, налоговых и таможенных органов и органов финансового (финансово-бюджетного) надзора | K20: 01 | L20: 06 | N20: 8,276,300.00 | O20: 8,186.4 | P20: 8,186.4 | Q20: 100.0
A21: Обеспечение проведения выборов и референдумов | K21: 01 | L21: 07 | N21: 1,214,167.21 | O21: 0.0 | P21: 0.0
A22: Проведение выборов и референдумов | K22: 01 | L22: 07 | N22: 796,951.73 | O22: 797.0 | P22: 797.0 | Q22: 100.0
A23: Проведение выборов и референдумов | K23: 01 | L23: 07 | N23: 796,951.73 | O23: 797.0 | P23: 797.0 | Q23: 100.0
A24: Расходы на обеспечение деятельности членов избирательной комиссии | K24: 01 | L24: 07 | N24: 796,951.73 | O24: 797.0 | P24: 797.0 | Q24: 100.0
A25: Иные бюджетные ассигнования | K25: 01 | L25: 07 | N25: 796,951.73 | O25: 797.0 | P25: 797.0 | Q25: 100.0
A26: Специальные расходы | K26: 01 | L26: 07 | N26: 796,951.73 | O26: 797.0 | P26: 797.0 | Q26: 100.0
A27: Итого по 7120001400 | K27: 01 | L27: 07 | N27: 796,951.73 | O27: 797.0 | P27: 797.0 | Q27: 100.0
A28: Предоставление межбюджетных трансфертов | K28: 01 | L28: 07 | N28: 417,215.48 | O28: 417.2 | P28: 417.2 | Q28: 100.0
A29: Межбюджетные трансферты, передаваемые бюджету муниципального района из бюджета поселения на осуществление переданных отдельных полномочий по решению некоторых вопросов местного значения | K29: 01 | L29: 07 | N29: 417,215.48 | O29: 417.2 | P29: 417.2 | Q29: 100.0
A30: Иные бюджетные ассигнования | K30: 01 | L30: 07 | N30: 417,215.48 | O30: 417.2 | P30: 417.2 | Q30: 100.0
A31: Специальные расходы | K31: 01 | L31: 07 | N31: 417,215.48 | O31: 417.2 | P31: 417.2 | Q31: 100.0
A32: Итого по 7200006010 | K32: 01 | L32: 07 | N32: 417,215.48 | O32: 417.2 | P32: 417.2 | Q32: 100.0
A33: Резервные фонды | K33: 01 | L33: 11 | N33: 148,051.00 | O33: 44.7 | P33: 44.7 | Q33: 100.0
A34: Другие общегосударственные вопросы | K34: 01 | L34: 13 | N34: 13,536,950.95 | O34: 17,016.7 | P34: 17,016.7 | Q34: 100.0
A35: Основное мероприятие "Укрепление на территории муниципального района законности, правопорядка, защиты прав и свобод граждан" | K35: 01 | L35: 13 | N35: 230,705.60 | O35: 230.7 | P35: 230.7 | Q35: 100.0
A36: Реализация основного мероприятия | K36: 01 | L36: 13 | N36: 230,705.60 | O36: 230.7 | P36: 230.7 | Q36: 100.0
A37: Реализация основного мероприятия | K37: 01 | L37: 13 | N37: 230,705.60 | O37: 230.7 | P37: 230.7 | Q37: 100.0
A38: Расходы на выплаты персоналу в целях обеспечения выполнения функций муниципальными органами, казенными учреждениями | K38: 01 | L38: 13 | N38: 30,000.00 | O38: 30.0 | P38: 30.0 | Q38: 100.0
A39: Расходы на выплаты персоналу казенных учреждений | K39: 01 | L39: 13 | N39: 30,000.00 | O39: 30.0 | P39: 30.0 | Q39: 100.0
A40: Закупка товаров, работ и услуг для муниципальных нужд | K40: 01 | L40: 13 | N40: 200,705.60 | O40: 200.7 | P40: 200.7 | Q40: 100.0
A41: Иные закупки товаров, работ и услуг для обеспечения муниципальных нужд | K41: 01 | L41: 13 | N41: 200,705.60 | O41: 200.7 | P41: 200.7 | Q41: 100.0
A42: Итого по 12101N0000 | K42: 01 | L42: 13 | N42: 230,705.60 | O42: 230.7 | P42: 230.7 | Q42: 100.0
A43: Основное мероприятие "Усиление антитеррористической защищенности объектов с массовым пребыванием граждан" | K43: 01 | L43: 13 | N43: 348,876.00 | O43: 348.9 | P43: 348.9 | Q43: 100.0
A44: Реализация основного мероприятия | K44: 01 | L44: 13 | N44: 348,876.00 | O44: 348.9 | P44: 348.9 | Q44: 100.0
A45: Реализация основного мероприятия | K45: 01 | L45: 13 | N45: 348,876.00 | O45: 348.9 | P45: 348.9 | Q45: 100.0
A46: Закупка товаров, работ и услуг для муниципальных нужд | K46: 01 | L46: 13 | N46: 348,876.00 | O46: 348.9 | P46: 348.9 | Q46: 100.0
A47: Иные закупки товаров, работ и услуг для обеспечения муниципальных нужд | K47: 01 | L47: 13 | N47: 348,876.00 | O47: 348.9 | P47: 348.9 | Q47: 100.0
A48: Итого по 12201N0000 | K48: 01 | L48: 13 | N48: 348,876.00 | O48: 348.9 | P48: 348.9 | Q48: 100.0
A49: Обеспечение деятельности казенных учреждений | K49: 01 | L49: 13 | N49: 12,390,597.35 | O49: 12,390.6 | P49: 12,390.6 | Q49: 100.0
A50: Расходы на обеспечение деятельности муниципальных казенных учреждений | K50: 01 | L50: 13 | N50: 12,324,497.35 | O50: 12,324.5 | P50: 12,324.5 | Q50: 100.0
A51: Расходы на выплаты персоналу в целях обеспечения выполнения функций муниципальными органами, казенными учреждениями | K51: 01 | L51: 13 | N51: 8,200,498.78 | O51: 8,200.5 | P51: 8,200.5 | Q51: 100.0
A52: Расходы на выплаты персоналу казенных учреждений | K52: 01 | L52: 13 | N52: 8,200,498.78 | O52: 8,200.5 | P52: 8,200.5 | Q52: 100.0
A53: Закупка товаров, работ и услуг для муниципальных нужд | K53: 01 | L53: 13 | N53: 4,066,184.00 | O53: 4,066.2 | P53: 4,066.2 | Q53: 100.0
A54: Иные закупки товаров, работ и услуг для обеспечения муниципальных нужд | K54: 01 | L54: 13 | N54: 4,066,184.00 | O54: 4,066.2 | P54: 4,066.2 | Q54: 100.0
A55: Иные бюджетные ассигнования | K55: 01 | L55: 13 | N55: 57,814.57 | O55: 57.8 | P55: 57.8 | Q55: 100.0
A56: Уплата налогов, сборов и иных платежей | K56: 01 | L56: 13 | N56: 57,814.57 | O56: 57.8 | P56: 57.8 | Q56: 100.0
A57: Итого по 7400004200 | K57: 01 | L57: 13 | N57: 12,324,497.35 | O57: 12,324.5 | P57: 12,324.5 | Q57: 100.0
A58: Уплата земельного налога, налога на имущество и транспортного налога казенными учреждениями | K58: 01 | L58: 13 | N58: 66,100.00 | O58: 66.1 | P58: 66.1 | Q58: 100.0
A59: Иные бюджетные ассигнования | K59: 01 | L59: 13 | N59: 66,100.00 | O59: 66.1 | P59: 66.1 | Q59: 100.0
A60: Уплата налогов, сборов и иных платежей | K60: 01 | L60: 13 | N60: 66,100.00 | O60: 66.1 | P60: 66.1 | Q60: 100.0
A61: Итого по 7400006200 | K61: 01 | L61: 13 | N61: 66,100.00 | O61: 66.1 | P61: 66.1 | Q61: 100.0
A62: Внепрограммные мероприятия | K62: 01 | L62: 13 | N62: 416,940.00 | O62: 416.9 | P62: 416.9 | Q62: 100.0
A63: Внепрограммные мероприятия | K63: 01 | L63: 13 | N63: 416,940.00 | O63: 416.9 | P63: 416.9 | Q63: 100.0
A64: Иные бюджетные ассигнования | K64: 01 | L64: 13 | N64: 161,100.00 | O64: 161.1 | P64: 161.1 | Q64: 100.0
A65: Уплата налогов, сборов и иных платежей | K65: 01 | L65: 13 | N65: 161,100.00 | O65: 161.1 | P65: 161.1 | Q65: 100.0
A66: Итого по 7530000800 | K66: 01 | L66: 13 | N66: 161,100.00 | O66: 161.1 | P66: 161.1 | Q66: 100.0
A67: Закупка товаров, работ и услуг для муниципальных нужд | K67: 01 | L67: 13 | N67: 90,000.00 | O67: 90.0 | P67: 90.0 | Q67: 100.0
A68: Иные закупки товаров, работ и услуг для обеспечения муниципальных нужд | K68: 01 | L68: 13 | N68: 90,000.00 | O68: 90.0 | P68: 90.0 | Q68: 100.0
A69: Итого по 7530000900 | K69: 01 | L69: 13 | N69: 90,000.00 | O69: 90.0 | P69: 90.0 | Q69: 100.0
A70: Оценка недвижимости,признание прав и регулирование отношений по государственной и муниципальной собственности | K70: 01 | L70: 13 | N70: 152,460.00 | O70: 152.5 | P70: 152.5 | Q70: 100.0
A71: Закупка товаров, работ и услуг для муниципальных нужд | K71: 01 | L71: 13 | N71: 152,460.00 | O71: 152.5 | P71: 152.5 | Q71: =P71/O71*100 -> 100.0
A72: Иные закупки товаров, работ и услуг для обеспечения муниципальных нужд | K72: 01 | L72: 13 | N72: 152,460.00 | O72: 152.5 | P72: 152.5 | Q72: 100.0
A73: Итого по 7530002300 | K73: 01 | L73: 13 | N73: 152,460.00 | O73: 152.5 | P73: 152.5 | Q73: 100.0
A74: Выполнение других обязательств органами местного самоуправления | K74: 01 | L74: 13 | N74: 13,380.00 | O74: 13.4 | P74: 13.4 | Q74: 100.0
A75: Закупка товаров, работ и услуг для муниципальных нужд | K75: 01 | L75: 13 | N75: 13,380.00 | O75: 13.4 | P75: 13.4 | Q75: 100.0
A76: Иные закупки товаров, работ и услуг для обеспечения муниципальных нужд | K76: 01 | L76: 13 | N76: 13,380.00 | O76: 13.4 | P76: 13.4 | Q76: 100.0
A77: Итого по 7530002350 | K77: 01 | L77: 13 | N77: 13,380.00 | O77: 13.4 | P77: 13.4 | Q77: 100.0
A78: Погашение кредиторской задолженности | K78: 01 | L78: 13 | N78: 11,100.00 | O78: 11.1 | P78: 11.1 | Q78: 100.0
A79: Погашение кредиторской задолженности | K79: 01 | L79: 13 | N79: 11,100.00 | O79: 11.1 | P79: 11.1 | Q79: 100.0
A80: Кредиторская задолженность по проектным работам, экспертизе объектов и услугам БТИ | K80: 01 | L80: 13 | N80: 11,100.00 | O80: 11.1 | P80: 11.1 | Q80: 100.0
A81: Закупка товаров, работ и услуг для муниципальных нужд | K81: 01 | L81: 13 | N81: 11,100.00 | O81: 11.1 | P81: 11.1 | Q81: 100.0
A82: Иные закупки товаров, работ и услуг для обеспечения муниципальных нужд | K82: 01 | L82: 13 | N82: 11,100.00 | O82: 11.1 | P82: 11.1 | Q82: 100.0
A83: Итого по 7550002342 | K83: 01 | L83: 13 | N83: 11,100.00 | O83: 11.1 | P83: 11.1 | Q83: 100.0
A84: Исполнение судебных решений | K84: 01 | L84: 13 | N84: 138,732.00 | O84: 138.7 | P84: 138.7 | Q84: 100.0
A85: Исполнение судебных решений | K85: 01 | L85: 13 | N85: 138,732.00 | O85: 138.7 | P85: 138.7 | Q85: 100.0
A86: Расходы по исполнительным листам (судебные издержки и пользование чужими деньгами, пени, штрафы и прочее) | K86: 01 | L86: 13 | N86: 138,732.00 | O86: 138.7 | P86: 138.7 | Q86: 100.0
A87: Иные бюджетные ассигнования | K87: 01 | L87: 13 | N87: 138,732.00 | O87: 138.7 | P87: 138.7 | Q87: 100.0
A88: Исполнение судебных актов | K88: 01 | L88: 13 | N88: 138,732.00 | O88: 138.7 | P88: 138.7 | Q88: 100.0
A89: Итого по 7570002346 | K89: 01 | L89: 13 | N89: 138,732.00 | O89: 138.7 | P89: 138.7 | Q89: 100.0
A90: Национальная экономика | K90: 04 | L90: 00 | N90: 80,038,903.59 | O90: 80,038.9 | P90: 80,038.9 | Q90: 100.0
A91: Сельское хозяйство и рыболовство | K91: 04 | L91: 05 | N91: 1,359,600.00 | O91: 45.3 | P91: 45.3 | Q91: 100.0
A92: Расходы по исполнению полномочий за счет средств федерального бюджета | K92: 04 | L92: 05 | N92: 1,240,300.00 | O92: 1,240.3 | P92: 1,240.3 | Q92: 100.0
A93: Осуществление отдельных государственных полномочий за счет федерального бюджета | K93: 04 | L93: 05 | N93: 1,240,300.00 | O93: 1,240.3 | P93: 1,240.3 | Q93: 100.0
A94: Проведение Всероссийской сельскохозяйственной переписи в 2016 году | K94: 04 | L94: 05 | N94: 1,240,300.00 | O94: 1,240.3 | P94: 1,240.3 | Q94: 100.0
A95: Закупка товаров, работ и услуг для муниципальных нужд | K95: 04 | L95: 05 | N95: 1,240,300.00 | O95: 1,240.3 | P95: 1,240.3 | Q95: 100.0
A96: Иные закупки товаров, работ и услуг для обеспечения муниципальных нужд | K96: 04 | L96: 05 | N96: 1,240,300.00 | O96: 1,240.3 | P96: 1,240.3 | Q96: 100.0
A97: Итого по 7700053910 | K97: 04 | L97: 05 | N97: 1,240,300.00 | O97: 1,240.3 | P97: 1,240.3 | Q97: 100.0
A98: Расходы на исполнение полномочий за счет средств областного бюджета | K98: 04 | L98: 05 | N98: 119,300.00 | O98: 119.3 | P98: 119.3 | Q98: 100.0
A99: Расходы на исполнение полномочий за счет средств областного бюджета | K99: 04 | L99: 05 | N99: 119,300.00 | O99: 119.3 | P99: 119.3 | Q99: 100.0
A100: Осуществление органами местного самоуправления отдельных государственных полномочий на организацию проведения мероприятий по отлову и содержанию безнадзорных животных | K100: 04 | L100: 05 | N100: 1,300.00 | O100: 1.3 | P100: 1.3 | Q100: 100.0
A101: Закупка товаров, работ и услуг для муниципальных нужд | K101: 04 | L101: 05 | N101: 1,300.00 | O101: 1.3 | P101: 1.3 | Q101: 100.0
A102: Иные закупки товаров, работ и услуг для обеспечения муниципальных нужд | K102: 04 | L102: 05 | N102: 1,300.00 | O102: 1.3 | P102: 1.3 | Q102: 100.0
A103: Итого по 7800077Г00 | K103: 04 | L103: 05 | N103: 1,300.00 | O103: 1.3 | P103: 1.3 | Q103: 100.0
A104: Проведение мероприятий по отлову и содержанию безнадзорных животных | K104: 04 | L104: 05 | N104: 118,000.00 | O104: 118.0 | P104: 118.0 | Q104: 100.0
A105: Закупка товаров, работ и услуг для муниципальных нужд | K105: 04 | L105: 05 | N105: 118,000.00 | O105: 118.0 | P105: 118.0 | Q105: 100.0
A106: Иные закупки товаров, работ и услуг для обеспечения муниципальных нужд | K106: 04 | L106: 05 | N106: 118,000.00 | O106: 118.0 | P106: 118.0 | Q106: 100.0
A107: Итого по 7800077Д00 | K107: 04 | L107: 05 | N107: 118,000.00 | O107: 118.0 | P107: 118.0 | Q107: 100.0
A108: Водные ресурсы | K108: 04 | L108: 06 | N108: 300,000.00 | O108: 300.0 | P108: 300.0 | Q108: 100.0
A109: Дорожное хозяйство (дорожные фонды) | K109: 04 | L109: 09 | N109: 71,421,384.42 | O109: 23,715.4 | P109: 23,715.4 | Q109: 100.0
A110: Другие вопросы в области национальной экономики | K110: 04 | L110: 12 | N110: 6,957,919.17 | O110: 2,210.0 | P110: 2,210.0 | Q110: 100.0
A111: Жилищное хозяйство | K111: 05 | L111: 01 | N111: 8,795,928.09 | O111: 831.2 | P111: 831.2 | Q111: 100.0
A112: Коммунальное хозяйство | K112: 05 | L112: 02 | N112: 13,784,642.62 | O112: 269.8 | P112: 269.8 | Q112: 100.0
A113: Благоустройство | K113: 05 | L113: 03 | N113: 8,480,867.36 | O113: 0.0 | P113: 0.0
A114: Другие вопросы в области жилищно-коммунального хозяйства | K114: 05 | L114: 05 | N114: 1,162,376.57
A115: Дошкольное образование | K115: 07 | L115: 01 | N115: 168,649,986.25 | O115: 199,102.2 | P115: 199,102.2 | Q115: 100.0
A116: Общее образование | K116: 07 | L116: 02 | N116: 362,548,014.15 | O116: 377,067.7 | P116: 377,067.7 | Q116: 100.0
A117: Дополнительное образование детей | K117: 07 | L117: 03 | O117: 46,162.3 | P117: 46,162.3 | Q117: 100.0
A118: Молодежная политика | K118: 07 | L118: 07 | N118: 3,447,230.00 | O118: 4,763.0 | P118: 4,763.0 | Q118: 100.0
A119: Другие вопросы в области образования | K119: 07 | L119: 09 | N119: 22,041,344.90 | O119: 75,388.4 | P119: 75,388.4 | Q119: 100.0
A120: Культура | K120: 08 | L120: 01 | N120: 65,411,849.80 | O120: 87,615.3 | P120: 87,615.3 | Q120: 100.0
A121: Другие вопросы в области культуры, кинематографии | K121: 08 | L121: 04 | N121: 3,417,838.18 | O121: 16,232.2 | P121: 16,232.2 | Q121: 100.0
A122: Пенсионное обеспечение | K122: 10 | L122: 01 | N122: 4,091,600.00 | O122: 4,590.2 | P122: 4,590.2 | Q122: 100.0
A123: Социальное обеспечение населения | K123: 10 | L123: 03 | N123: 10,368,409.00 | O123: 13,418.6 | P123: 13,418.6 | Q123: 100.0
A124: Охрана семьи и детства | K124: 10 | L124: 04 | N124: 6,653,200.00 | O124: 6,719.5 | P124: 6,719.5 | Q124: 100.0
A125: Физическая культура | K125: 11 | L125: 01 | N125: 5,334,400.13 | O125: 5,970.3 | P125: 5,970.3 | Q125: 100.0
A126: Массовый спорт | K126: 11 | L126: 02 | N126: 178,400.00 | O126: 16,531.2 | P126: 16,531.2 | Q126: 100.0
A127: Периодическая печать и издательства | K127: 12 | L127: 02 | N127: 391,000.00 | O127: 310.0 | P127: 310.0 | Q127: 100.0
A128: Обслуживание государственного внутреннего и муниципального долга | K128: 13 | L128: 01 | N128: 1,578,000.00 | O128: 414.3 | P128: 414.3 | Q128: 100.0
A129: Дотации на выравнивание бюджетной обеспеченности субъектов Российской Федерации и муниципальных образований | K129: 14 | L129: 01 | N129: 2,421,700.00 | O129: 2,652.9 | P129: 2,652.9 | Q129: 100.0
A130: Прочие межбюджетные трансферты бюджетам субъектов Российской Федерации и муниципальных образований общего характера | K130: 14 | L130: 03 | N130: 781,213.15
A131: Всего: | M131: 0 | N131: 818,253,248.09 | O131: =O6+O7+O18+O19+O20+O21+O33+O34+O91+O108+O109+O110+O111+O112+O113+O114+O115+O116+O118+O119+O120+O121+O122+O123+O124+O125+O126+O127+O128+O129+O130+O117 -> 935,813.7 | P131: =P6+P7+P18+P19+P20+P21+P33+P34+P91+P108+P109+P110+P111+P112+P113+P114+P115+P116+P118+P119+P120+P121+P122+P123+P124+P125+P126+P127+P128+P129+P130+P117 -> 935,813.7 | Q131: 100.0
A132: Всего | K132: 0 | L132: 0 | M132: 0 | N132: 818,253,248.09 | O132: 818,253.2

Sheet Источники
H2: Приложение № 3 к Положение о порядке составления, утверждения и внесения изменений в сводную бюджетную роспись областного бюджета, бюджетные росписи главных распорядителей средств областного бюджета, лимиты бюджетных обязательств и кассовый план и о методологии прогнозирования временных кассовых разрывов
A10: Оценка ожидаемого исполнения бюджета Пугачевского муниципального района | E10: Оценка ожидаемого исполнения бюджета Пугачевского муниципального района на 2018 год
A11: на 2016 год
F12: 3. Источники
K14: ( тыс.рублей)
E15: Наименование показателя | F15: Код по КИФ | G15: Бюджетные назначения на 2018 год | H15: Ожидаемое исполнение за 2018 год | I15: Ожидаемое исполнение за 2015 год | J15: Ожидаемое исполнение за 2015 год | K15: % исполнения
E18: 1 | F18: 2 | G18: 3 | H18: 4 | K18: 5
B19: 00001000000000000000 | E19: ИСТОЧНИКИ ВНУТРЕННЕГО ФИНАНСИРОВАНИЯ ДЕФИЦИТОВ БЮДЖЕТОВ | F19: 000.01.00.00.00.00.0000.000 | G19: =G20+G23+G26+G31 -> 19,845.4 | H19: =H20+H23+H26+H31 -> 19,845.4 | K19: =H19/G19*100 -> 100.0
E20: Кредиты кредитных организаций в валюте Российской Федерации | F20: 000.01.02.00.00.00.0000.000 | G20: =G21+G22 -> -1,600.0 | H20: =H21+H22 -> -1,600.0 | K20: =H20/G20*100 -> 100.0
B21: 00001020000050000710 | E21: Получение кредитов от кредитных организаций бюджетами муниципальных районов в валюте Российской Федерации | F21: 000.01.02.00.00.05.0000.710 | G21: 0.0 | H21: 0.0 | K21: 0.0
B22: 00001020000050000810 | E22: Погашение бюджетами муниципальных районов кредитов от кредитных организаций в валюте Российской Федерации | F22: 000.01.02.00.00.05.0000.810 | G22: -1,600.0 | H22: -1,600.0 | K22: 100.0
E23: Бюджетные кредиты от других бюджетов бюджетной системы Российской Федерации | F23: 000.01.03.00.00.00.0000.000 | G23: =G24+G25 -> 16,850.0 | H23: =H24+H25 -> 16,850.0 | K23: 100.0
B24: 00001030100050000710 | E24: Получение кредитов от других бюджетов бюджетной системы Российской Федерации бюджетами муниципальных районов в валюте Российской Федерации | F24: 000.01.03.01.00.05.0000.710 | G24: 41,850.0 | H24: 41,850.0 | K24: 0.0
B25: 00001030100050000810 | E25: Погашение бюджетами муниципальных районов кредитов от других бюджетов бюджетной системы Российской Федерации в валюте Российской Федерации | F25: 000.01.03.01.00.05.0000.810 | G25: -25,000.0 | H25: -25,000.0 | K25: 100.0
E26: Иные источники внутреннего финансирования дефицитов бюджетов | F26: 000.01.06.00.00.00.0000.000 | G26: =G30+G29 -> 2,338.6 | H26: =H30+H29 -> 2,338.6 | K26: 100.0
B27: 00001060502052600540 | E27: Предоставление бюджетных кредитов другим бюджетам бюджетной системы Российской Федерации для покрытия временного кассового разрыва из бюджета муниципального района в валюте Российской Федерации | F27: 000.01.06.05.02.05.2600.540
B28: 00001060502052600640 | E28: Возврат бюджетных кредитов, предоставленных другим бюджетам бюджетной системы РФ для покрытия временного кассового разрыва из бюджетов муниципальных районов в валюте РФ | F28: 000.01.06.05.02.05.2600.640
B29: 00001060502055000540 | E29: Предоставление бюджетных кредитов другим бюджетам бюджетной системы Российской Федерации для частичного покрытия дефицитов из бюджета муниципального района в валюте Российской Федерации | F29: 000.01.06.05.02.05.5000.540 | G29: 0.0 | H29: 0.0 | K29: 0.0
B30: 00001060502055000640 | E30: Возврат бюджетных кредитов, предоставленных другим бюджетам бюджетной системы РФ для частичного покрытия дефицитов из бюджетов муниципальных районов в валюте РФ | F30: 000.01.06.05.02.05.5000.640 | G30: 2,338.6 | H30: 2,338.6 | K30: 100.0
E31: Изменение остатков средств на счетах по учету средств бюджета | F31: 000.01.05.00.00.00.0000.000 | G31: 2,256.8 | H31: 2,256.8 | K31: 100.0
